fUSD/lending_fUSD_20260525
["ID","MTS","AMOUNT","RATE_DAILY","PERIOD"]
[422944852,1779665432000,-1013.18,0.00010875,2]
[422944880,1779665432000,-500.0,0.00013698,2]
[422944882,1779665432000,-1523.66,0.00013698,2]
[422944876,1779665432000,-407.9847,0.00013598,2]
[422944878,1779665432000,-150.0,0.00013692,2]
[422944864,1779665432000,-1472.66,0.00012687,2]
[422944854,1779665432000,-150.21,0.00011744,2]
[422944840,1779665432000,-22386.20783928,0.000103,2]
[422944851,1779665432000,-15695.03,0.00010875,2]
[422944826,1779665432000,-982.379068,0.00010039,2]
[422944827,1779665432000,-83.49705931,0.00010088,2]
[422944829,1779665432000,-284.60163902,0.00010088,2]
[422944836,1779665432000,-939.169211,0.000103,2]
[422944832,1779665432000,-300.0,0.00010297,2]
[422944833,1779665432000,-194.0,0.00010297,2]
[422944828,1779665432000,-693.69606344,0.00010088,2]
[422944830,1779665432000,-138.20523823,0.00010088,2]
[422944831,1779665432000,-150.21,0.00010142,2]
[422944834,1779665432000,-300.0,0.00010297,2]
[422944835,1779665432000,-172.97510345,0.000103,2]
[422944837,1779665432000,-625.05307491,0.000103,2]
[422944838,1779665432000,-1030.13421599,0.000103,2]
[422944843,1779665432000,-8778.30811633,0.000103,2]
[422944839,1779665432000,-371.24548325,0.000103,2]
[422944841,1779665432000,-1503.14592439,0.000103,2]
[422944844,1779665432000,-398.23314633,0.000103,2]
[422944846,1779665432000,-505.84396399,0.000103,2]
[422944842,1779665432000,-2072.67693804,0.000103,2]
[422944879,1779665432000,-500.0,0.00013698,2]
[422944845,1779665432000,-488.39471186,0.000103,2]
[422944847,1779665432000,-49420.75589254,0.000103,2]
[422944849,1779665432000,-500.0,0.00010437,2]
[422944850,1779665432000,-150.21,0.00010676,2]
[422944848,1779665432000,-3449.0,0.0001041,2]
[422944856,1779665432000,-1852.42,0.0001198,2]
[422944875,1779665432000,-150.0,0.00013556,2]
[422944857,1779665432000,-559.2,0.00012075,2]
[422944894,1779665432000,-150.0,0.00013965,2]
[422944918,1779665432000,-1640.45073678,0.000148,2]
[422944885,1779665432000,-208.8304494,0.00013753,2]
[422944910,1779665432000,-150.0,0.00014509,2]
[422944913,1779665432000,-150.0,0.00014612,2]
[422944914,1779665432000,-150.0,0.00014646,2]
[422944911,1779665432000,-150.0,0.00014578,2]
[422944912,1779665432000,-150.0,0.00014612,2]
[422944924,1779665432000,-1640.45073676,0.00014856,2]
[422944921,1779665432000,-1640.45073676,0.00014833,2]
[422944927,1779665432000,-1640.45073676,0.00014878,2]
[422944925,1779665432000,-1068.71277598,0.00014858,2]
[422944926,1779665432000,-1640.45073676,0.00014867,2]
[422944917,1779665432000,-150.0,0.00014782,2]
[422944932,1779665432000,-3239.09971442,0.00014899,2]
[422944922,1779665432000,-1640.45073676,0.00014844,2]
[422944923,1779665432000,-150.0,0.0001485,2]
[422944931,1779665432000,-3239.09971442,0.00014899,2]
[422944928,1779665432000,-1640.45073676,0.00014889,2]
[422944933,1779665432000,-2208.12580522,0.00014899,2]
[422944929,1779665432000,-3239.0997145,0.00014899,2]
[422944934,1779665432000,-1030.9739092,0.00014899,2]
[422944936,1779665432000,-3239.09971442,0.000149,2]
[422944935,1779665432000,-3239.09971442,0.000149,2]
[422944939,1779665432000,-3239.09971442,0.000149,2]
[422944938,1779665432000,-3106.30682985,0.000149,2]
[422944937,1779665432000,-132.79288457,0.000149,2]
[422944930,1779665432000,-3239.09971442,0.00014899,2]
[422944919,1779665432000,-1640.45073676,0.00014811,2]
[422944920,1779665432000,-1640.45073676,0.00014822,2]
[422944915,1779665432000,-150.0,0.00014687,2]
[422944890,1779665432000,-150.0,0.00013862,2]
[422944883,1779665432000,-1523.66,0.00013698,2]
[422944884,1779665432000,-200.0,0.00013699,2]
[422944887,1779665432000,-150.0,0.0001376,2]
[422944886,1779665432000,-215.34753388,0.00013757,2]
[422944893,1779665432000,-150.0,0.00013896,2]
[422944892,1779665432000,-150.21,0.00013879,2]
[422944889,1779665432000,-150.0,0.00013828,2]
[422944888,1779665432000,-150.0,0.00013787,2]
[422944916,1779665432000,-150.0,0.00014714,2]
[422944895,1779665432000,-150.0,0.00013987,2]
[422944898,1779665432000,-150.0,0.00014101,2]
[422944897,1779665432000,-150.0,0.00014087,2]
[422944891,1779665432000,-150.0,0.00013862,2]
[422944901,1779665432000,-150.0,0.00014237,2]
[422944940,1779665432000,-453.28600362,0.000149,7]
[422944909,1779665432000,-150.0,0.00014487,2]
[422944899,1779665432000,-223.28,0.00014107,2]
[422944905,1779665432000,-150.0,0.00014373,2]
[422944900,1779665432000,-150.0,0.00014169,2]
[422944904,1779665432000,-150.0,0.00014305,2]
[422944902,1779665432000,-150.0,0.00014237,2]
[422944907,1779665432000,-150.21,0.00014413,2]
[422944906,1779665432000,-150.0,0.00014387,2]
[422944896,1779665432000,-150.0,0.00014033,2]
[422944903,1779665432000,-150.0,0.00014237,2]
[422944908,1779665432000,-150.0,0.00014441,2]
[422944951,1779665437000,-55593.71399638,0.000149,7]
[422944952,1779665438000,-5734.6759,0.000149,2]
[422944953,1779665438000,-411.36473153,0.000149,2]
[422944955,1779665438000,-2985.63526847,0.000149,2]
[422944954,1779665438000,-1603.0,0.000149,2]
[422944957,1779665438000,-1640.45073676,0.000149,2]
[422944956,1779665438000,-152.86430949,0.000149,2]
[422944960,1779665438000,-150.0,0.00014918,2]
[422944959,1779665438000,-3321.34647124,0.000149,2]
[422944965,1779665438000,-667.96197469,0.00014959,2]
[422944964,1779665438000,-1129.99539312,0.00014959,2]
[422944958,1779665438000,-3239.09971442,0.000149,2]
[422944963,1779665438000,-378.57708216,0.00014959,2]
[422944961,1779665438000,-150.21,0.00014947,2]
[422944962,1779665438000,-2780.72189606,0.00014959,2]
[422944981,1779665440000,-1956.82,0.00014959,2]
[422944980,1779665440000,-5409.39913664,0.00014959,2]
[422945027,1779665442000,-500.0,0.00014899,2]
[422945036,1779665442000,-284.95819102,0.0001499,2]
[422945028,1779665442000,-1395.52451733,0.00014959,2]
[422945029,1779665442000,-1848.216,0.00014982,2]
[422945031,1779665442000,-150.00000001,0.00014986,2]
[422945030,1779665442000,-174.019,0.00014982,2]
[422945033,1779665442000,-150.0,0.00014986,2]
[422945032,1779665442000,-150.0,0.00014986,2]
[422945035,1779665442000,-293.48000024,0.00014986,2]
[422945034,1779665442000,-150.0,0.00014986,2]
[422945038,1779665442000,-284.95819102,0.0001499,2]
[422945041,1779665442000,-500.0,0.00014999,2]
[422945039,1779665442000,-249.45259469,0.00014999,2]
[422945040,1779665442000,-500.0,0.00014999,2]
[422945025,1779665442000,-500.0,0.00014899,2]
[422945042,1779665442000,-429.78547385,0.00014999,2]
[422945044,1779665442000,-500.0,0.00014999,2]
[422945043,1779665442000,-500.0,0.00014999,2]
[422945045,1779665442000,-364.76733179,0.00014999,2]
[422945046,1779665442000,-547.3054344,0.00014999,2]
[422945047,1779665442000,-500.0,0.00014999,2]
[422945048,1779665442000,-500.0,0.00014999,2]
[422945049,1779665442000,-500.0,0.00014999,2]
[422945037,1779665442000,-284.95819102,0.0001499,2]
[422945019,1779665442000,-500.0,0.00014899,2]
[422945022,1779665442000,-500.0,0.00014899,2]
[422945026,1779665442000,-500.0,0.00014899,2]
[422945050,1779665442000,-500.0,0.00014999,2]
[422944995,1779665442000,-500.0,0.00014899,2]
[422944994,1779665442000,-500.0,0.00014899,2]
[422944998,1779665442000,-500.0,0.00014899,2]
[422944999,1779665442000,-500.0,0.00014899,2]
[422944997,1779665442000,-500.0,0.00014899,2]
[422945000,1779665442000,-500.0,0.00014899,2]
[422944996,1779665442000,-500.0,0.00014899,2]
[422945001,1779665442000,-500.0,0.00014899,2]
[422945003,1779665442000,-500.0,0.00014899,2]
[422945012,1779665442000,-500.0,0.00014899,2]
[422945024,1779665442000,-500.0,0.00014899,2]
[422945013,1779665442000,-499.2195311,0.00014899,2]
[422945004,1779665442000,-500.0,0.00014899,2]
[422945014,1779665442000,-500.0,0.00014899,2]
[422945005,1779665442000,-500.0,0.00014899,2]
[422945008,1779665442000,-500.0,0.00014899,2]
[422945010,1779665442000,-500.0,0.00014899,2]
[422945011,1779665442000,-500.0,0.00014899,2]
[422945006,1779665442000,-500.0,0.00014899,2]
[422945018,1779665442000,-500.0,0.00014899,2]
[422945017,1779665442000,-500.0,0.00014899,2]
[422945020,1779665442000,-500.0,0.00014899,2]
[422945021,1779665442000,-500.0,0.00014899,2]
[422945015,1779665442000,-500.0,0.00014899,2]
[422945051,1779665442000,-500.0,0.00014999,2]
[422945002,1779665442000,-500.0,0.00014899,2]
[422945053,1779665442000,-335.02794156,0.00014999,2]
[422945083,1779665442000,-500.0,0.00014999,2]
[422945086,1779665442000,-500.0,0.00014999,2]
[422945085,1779665442000,-500.0,0.00014999,2]
[422945095,1779665442000,-500.0,0.00014999,2]
[422945094,1779665442000,-500.0,0.00014999,2]
[422945096,1779665442000,-500.0,0.00014999,2]
[422945093,1779665442000,-500.0,0.00014999,2]
[422945097,1779665442000,-500.0,0.00014999,2]
[422945087,1779665442000,-500.0,0.00014999,2]
[422945089,1779665442000,-500.0,0.00014999,2]
[422945092,1779665442000,-500.0,0.00014999,2]
[422945076,1779665442000,-500.0,0.00014999,2]
[422945109,1779665442000,-500.0,0.00014999,2]
[422945091,1779665442000,-500.0,0.00014999,2]
[422945090,1779665442000,-513.50677347,0.00014999,2]
[422945098,1779665442000,-500.0,0.00014999,2]
[422945100,1779665442000,-421.78,0.00014999,2]
[422945101,1779665442000,-500.0,0.00014999,2]
[422945102,1779665442000,-500.0,0.00014999,2]
[422945103,1779665442000,-500.0,0.00014999,2]
[422945107,1779665442000,-500.0,0.00014999,2]
[422945105,1779665442000,-500.0,0.00014999,2]
[422945099,1779665442000,-500.0,0.00014999,2]
[422945052,1779665442000,-500.0,0.00014999,2]
[422945088,1779665442000,-373.3,0.00014999,2]
[422945077,1779665442000,-500.0,0.00014999,2]
[422945084,1779665442000,-500.0,0.00014999,2]
[422945082,1779665442000,-500.0,0.00014999,2]
[422945056,1779665442000,-500.0,0.00014999,2]
[422945054,1779665442000,-500.0,0.00014999,2]
[422945055,1779665442000,-500.0,0.00014999,2]
[422945057,1779665442000,-500.0,0.00014999,2]
[422945058,1779665442000,-500.0,0.00014999,2]
[422945059,1779665442000,-500.0,0.00014999,2]
[422945060,1779665442000,-500.0,0.00014999,2]
[422945061,1779665442000,-500.0,0.00014999,2]
[422945063,1779665442000,-500.0,0.00014999,2]
[422945062,1779665442000,-500.0,0.00014999,2]
[422945066,1779665442000,-500.0,0.00014999,2]
[422945075,1779665442000,-500.0,0.00014999,2]
[422945064,1779665442000,-500.0,0.00014999,2]
[422945068,1779665442000,-500.0,0.00014999,2]
[422945069,1779665442000,-331.29,0.00014999,2]
[422945065,1779665442000,-297.11,0.00014999,2]
[422945070,1779665442000,-500.0,0.00014999,2]
[422945071,1779665442000,-500.0,0.00014999,2]
[422945072,1779665442000,-500.0,0.00014999,2]
[422945073,1779665442000,-500.0,0.00014999,2]
[422945074,1779665442000,-500.0,0.00014999,2]
[422945078,1779665442000,-500.0,0.00014999,2]
[422945080,1779665442000,-500.0,0.00014999,2]
[422945081,1779665442000,-500.0,0.00014999,2]
[422945079,1779665442000,-500.0,0.00014999,2]
[422945067,1779665442000,-500.0,0.00014999,2]
[422945111,1779665443000,-500.0,0.00014999,2]
[422945115,1779665443000,-500.0,0.00014999,2]
[422945113,1779665443000,-500.0,0.00014999,2]
[422945117,1779665443000,-300.0,0.00014999,2]
[422945119,1779665443000,-300.0,0.00014999,2]
[422945121,1779665443000,-666.0,0.00014999,2]
[422945137,1779665443000,-19259.34180673,0.00015,2]
[422945138,1779665443000,-5782.94769063,0.00015,2]
[422945123,1779665443000,-300.0,0.00014999,2]
[422945125,1779665443000,-1862794.81931665,0.00015,2]
[422945143,1779665446000,-500.0,0.00014999,2]
[422945144,1779665446000,-36807.32408388,0.00015,2]
[422945142,1779665446000,-2353.30916637,0.00015,2]
[422945141,1779665446000,-500.0,0.00014899,2]
[422945139,1779665446000,-3110.7961,0.00015,2]
[422945140,1779665446000,-773.898019,0.00015,2]
[422945150,1779665522000,205.85,7.992e-05,2]
[422945171,1779666281000,245.05,6.927e-05,2]
[422945173,1779666282000,245.05,7.657e-05,2]
[422945172,1779666282000,245.05,7.292e-05,2]
[422945174,1779666283000,245.05,8.021e-05,2]
[422945176,1779666283000,245.05,8.75e-05,2]
[422945175,1779666283000,245.05,8.386e-05,2]
[422945196,1779666633000,-245.05,9.115e-05,2]
[422945197,1779666633000,-134.12948859,9.48e-05,2]
[422945198,1779666633000,-110.92051141,9.48e-05,2]
[422945221,1779666634000,-1200.0,0.00013487,2]
[422945222,1779666634000,-150.0,0.00013488,2]
[422945223,1779666634000,-150.0,0.00013488,2]
[422945220,1779666634000,-300.0,0.00013487,2]
[422945224,1779666634000,-150.0,0.00013488,2]
[422945225,1779666634000,-150.00000001,0.00013488,2]
[422945226,1779666634000,-150.0,0.00013488,2]
[422945227,1779666634000,-150.0,0.00013488,2]
[422945229,1779666634000,-150.0,0.00013488,2]
[422945234,1779666634000,-19999.99,0.00013699,2]
[422945232,1779666634000,-12980.23874725,0.00013699,2]
[422945233,1779666634000,-17019.75125275,0.00013699,2]
[422945230,1779666634000,-245.05,0.0001349,2]
[422945231,1779666634000,-150.0,0.00013638,2]
[422945235,1779666634000,-150.0,0.00013787,2]
[422945237,1779666634000,-200.0,0.00013863,2]
[422945228,1779666634000,-150.0,0.00013488,2]
[422945219,1779666634000,-164.02,0.00013477,2]
[422945207,1779666634000,-245.05,0.00011667,2]
[422945216,1779666634000,-500.0,0.00013197,2]
[422945202,1779666634000,-245.05,0.00010209,2]
[422945201,1779666634000,-129.26601141,0.00010027,2]
[422945203,1779666634000,-89.29107293,0.00010573,2]
[422945199,1779666634000,-245.05,9.844e-05,2]
[422945200,1779666634000,-63.73398859,0.00010027,2]
[422945205,1779666634000,-245.05,0.00010938,2]
[422945208,1779666634000,-245.05,0.00012032,2]
[422945204,1779666634000,-155.75892707,0.00010573,2]
[422945206,1779666634000,-245.05,0.00011303,2]
[422945240,1779666634000,-150.0,0.00013937,2]
[422945209,1779666634000,-744.26052705,0.00012391,2]
[422945211,1779666634000,-245.05,0.00012397,2]
[422945214,1779666634000,-800.0,0.00013177,2]
[422945212,1779666634000,-245.05,0.00012761,2]
[422945213,1779666634000,-245.05,0.00013126,2]
[422945210,1779666634000,-383.73947295,0.00012391,2]
[422945215,1779666634000,-200.0,0.00013191,2]
[422945217,1779666634000,-874.92,0.00013232,2]
[422945239,1779666634000,-500.0,0.00013903,2]
[422945218,1779666634000,-470.13,0.00013243,2]
[422945238,1779666634000,-150.0,0.00013903,2]
[422945263,1779666634000,-500.0,0.00014798,2]
[422945262,1779666634000,-10403.50945251,0.00014798,2]
[422945258,1779666634000,-4171.6214,0.00014721,2]
[422945265,1779666634000,-1478.573,0.00014799,2]
[422945267,1779666634000,-5145.66756333,0.00014799,2]
[422945266,1779666634000,-174.019,0.00014799,2]
[422945268,1779666634000,-2529.46754223,0.00014799,2]
[422945269,1779666634000,-421.54288177,0.00014799,2]
[422945270,1779666634000,-4508.29546263,0.00014799,2]
[422945271,1779666634000,-168.12245968,0.00014799,2]
[422945272,1779666634000,-10403.50945245,0.00014809,2]
[422945273,1779666634000,-5145.66756333,0.0001481,2]
[422945275,1779666634000,-10403.50945245,0.00014821,2]
[422945276,1779666634000,-17952.11,0.00014821,2]
[422945278,1779666634000,-1254.41808677,0.00014821,2]
[422945277,1779666634000,-8529.50019088,0.00014821,2]
[422945236,1779666634000,-245.05,0.00013855,2]
[422945261,1779666634000,-696.32543239,0.00014797,2]
[422945259,1779666634000,-1825.0764,0.00014721,2]
[422945274,1779666634000,-2529.46754221,0.00014813,2]
[422945257,1779666634000,-225.362883,0.000147,2]
[422945241,1779666634000,-150.0,0.00013987,2]
[422945254,1779666634000,-9503.7515518,0.000147,2]
[422945242,1779666634000,-3881.0,0.00014,2]
[422945253,1779666634000,-150.0,0.00014687,2]
[422945249,1779666634000,-1896.99,0.00014402,2]
[422945245,1779666634000,-150.0,0.00014237,2]
[422945250,1779666634000,-150.0,0.00014487,2]
[422945243,1779666634000,-1896.99,0.00014051,2]
[422945244,1779666634000,-150.0,0.00014087,2]
[422945252,1779666634000,-168.24,0.00014539,2]
[422945246,1779666634000,-150.0,0.00014237,2]
[422945248,1779666634000,-150.0,0.00014387,2]
[422945255,1779666634000,-206.661919,0.000147,2]
[422945247,1779666634000,-150.0,0.00014237,2]
[422945264,1779666634000,-5000.0,0.00014799,2]
[422945260,1779666634000,-1896.99,0.00014753,2]
[422945251,1779666634000,-150.0,0.00014537,2]
[422945256,1779666634000,-160.319549,0.000147,2]
[422945301,1779666638000,-2529.46754221,0.00014857,2]
[422945298,1779666638000,-168.12245968,0.0001485,2]
[422945299,1779666638000,-10403.50945245,0.00014855,2]
[422945300,1779666638000,-5145.66756333,0.00014855,2]
[422945305,1779666638000,-10403.50945245,0.00014877,2]
[422945304,1779666638000,-2529.46754221,0.00014871,2]
[422945306,1779666638000,-5145.66756333,0.00014878,2]
[422945309,1779666638000,-436.45677459,0.00014888,2]
[422945307,1779666638000,-2529.46754221,0.00014886,2]
[422945297,1779666638000,-5145.66756333,0.00014844,2]
[422945303,1779666638000,-5145.66756333,0.00014866,2]
[422945302,1779666638000,-10403.50945245,0.00014866,2]
[422945295,1779666638000,-2529.46754221,0.00014842,2]
[422945285,1779666638000,-800.0,0.00014824,2]
[422945296,1779666638000,-10403.50945245,0.00014843,2]
[422945294,1779666638000,-150.0,0.00014836,2]
[422945293,1779666638000,-480.0,0.00014835,2]
[422945290,1779666638000,-1051.74850456,0.00014832,2]
[422945289,1779666638000,-1030.56229847,0.00014832,2]
[422945288,1779666638000,-869.43770153,0.00014828,2]
[422945286,1779666638000,-40.97673686,0.00014828,2]
[422945287,1779666638000,-1619.05310382,0.00014828,2]
[422945283,1779666638000,-4081.30267004,0.00014821,2]
[422945281,1779666638000,-500.0,0.00014761,2]
[422945284,1779666638000,-1064.36489329,0.00014821,2]
[422945282,1779666638000,-216.07172235,0.00014821,2]
[422945280,1779666638000,-500.0,0.00014487,2]
[422945308,1779666638000,-63.54322541,0.00014888,2]
[422945291,1779666638000,-8321.19864942,0.00014832,2]
[422945310,1779666638000,-33.27901472,0.00014888,2]
[422945292,1779666638000,-5145.66756333,0.00014833,2]
[422945311,1779666638000,-607.25098528,0.00014888,2]
[422945312,1779666638000,-343.68639488,0.00014888,2]
[422945345,1779666638000,-500.0,0.00014898,2]
[422945351,1779666638000,-500.0,0.00014898,2]
[422945341,1779666638000,-197.3054344,0.00014898,2]
[422945349,1779666638000,-331.29,0.00014898,2]
[422945343,1779666638000,-500.0,0.00014898,2]
[422945347,1779666638000,-500.0,0.00014898,2]
[422945339,1779666638000,-500.0,0.00014898,2]
[422945336,1779666638000,-500.0,0.00014898,2]
[422945331,1779666638000,-500.0,0.00014898,2]
[422945332,1779666638000,-364.76733179,0.00014898,2]
[422945330,1779666638000,-500.0,0.00014898,2]
[422945327,1779666638000,-429.78547385,0.00014898,2]
[422945328,1779666638000,-249.45259469,0.00014898,2]
[422945338,1779666638000,-500.0,0.00014898,2]
[422945326,1779666638000,-500.0,0.00014898,2]
[422945329,1779666638000,-500.0,0.00014898,2]
[422945319,1779666638000,-500.0,0.00014897,2]
[422945317,1779666638000,-461.16771895,0.00014889,2]
[422945314,1779666638000,-10403.50945245,0.00014889,2]
[422945320,1779666638000,-499.92195311,0.00014897,2]
[422945321,1779666638000,-500.0,0.00014897,2]
[422945315,1779666638000,-5145.66756333,0.00014889,2]
[422945316,1779666638000,-461.16771895,0.00014889,2]
[422945324,1779666638000,-500.0,0.00014897,2]
[422945322,1779666638000,-500.0,0.00014897,2]
[422945323,1779666638000,-500.0,0.00014897,2]
[422945318,1779666638000,-500.0,0.00014897,2]
[422945325,1779666638000,-426.47172481,0.00014897,2]
[422945313,1779666638000,-156.31360512,0.00014888,2]
[422945442,1779666639000,-500.0,0.00014898,2]
[422945452,1779666639000,-500.0,0.00014898,2]
[422945440,1779666639000,-500.0,0.00014898,2]
[422945444,1779666639000,-500.0,0.00014898,2]
[422945438,1779666639000,-500.0,0.00014898,2]
[422945408,1779666639000,-500.0,0.00014898,2]
[422945436,1779666639000,-500.0,0.00014898,2]
[422945424,1779666639000,-500.0,0.00014898,2]
[422945418,1779666639000,-500.0,0.00014898,2]
[422945473,1779666639000,-500.0,0.00014898,2]
[422945414,1779666639000,-500.0,0.00014898,2]
[422945456,1779666639000,-500.0,0.00014898,2]
[422945434,1779666639000,-500.0,0.00014898,2]
[422945446,1779666639000,-323.20561395,0.00014898,2]
[422945475,1779666639000,-500.0,0.00014898,2]
[422945460,1779666639000,-500.0,0.00014898,2]
[422945450,1779666639000,-500.0,0.00014898,2]
[422945454,1779666639000,-500.0,0.00014898,2]
[422945458,1779666639000,-500.0,0.00014898,2]
[422945462,1779666639000,-500.0,0.00014898,2]
[422945466,1779666639000,-500.0,0.00014898,2]
[422945464,1779666639000,-500.0,0.00014898,2]
[422945471,1779666639000,-241.06693824,0.00014898,2]
[422945468,1779666639000,-500.0,0.00014898,2]
[422945469,1779666639000,-500.0,0.00014898,2]
[422945483,1779666639000,-500.0,0.00014898,2]
[422945485,1779666639000,-500.0,0.00014898,2]
[422945479,1779666639000,-500.0,0.00014898,2]
[422945432,1779666639000,-500.0,0.00014898,2]
[422945448,1779666639000,-500.0,0.00014898,2]
[422945412,1779666639000,-500.0,0.00014898,2]
[422945388,1779666639000,-500.0,0.00014898,2]
[422945404,1779666639000,-500.0,0.00014898,2]
[422945369,1779666639000,-500.0,0.00014898,2]
[422945365,1779666639000,-500.0,0.00014898,2]
[422945363,1779666639000,-500.0,0.00014898,2]
[422945357,1779666639000,-500.0,0.00014898,2]
[422945353,1779666639000,-500.0,0.00014898,2]
[422945355,1779666639000,-500.0,0.00014898,2]
[422945361,1779666639000,-500.0,0.00014898,2]
[422945375,1779666639000,-500.0,0.00014898,2]
[422945381,1779666639000,-500.0,0.00014898,2]
[422945359,1779666639000,-500.0,0.00014898,2]
[422945371,1779666639000,-500.0,0.00014898,2]
[422945367,1779666639000,-500.0,0.00014898,2]
[422945377,1779666639000,-500.0,0.00014898,2]
[422945379,1779666639000,-500.0,0.00014898,2]
[422945400,1779666639000,-500.0,0.00014898,2]
[422945373,1779666639000,-500.0,0.00014898,2]
[422945386,1779666639000,-513.50677347,0.00014898,2]
[422945392,1779666639000,-500.0,0.00014898,2]
[422945390,1779666639000,-500.0,0.00014898,2]
[422945394,1779666639000,-500.0,0.00014898,2]
[422945410,1779666639000,-500.0,0.00014898,2]
[422945429,1779666639000,-500.0,0.00014898,2]
[422945398,1779666639000,-500.0,0.00014898,2]
[422945416,1779666639000,-500.0,0.00014898,2]
[422945430,1779666639000,-500.0,0.00014898,2]
[422945402,1779666639000,-500.0,0.00014898,2]
[422945423,1779666639000,-500.0,0.00014898,2]
[422945421,1779666639000,-623.85,0.00014898,2]
[422945396,1779666639000,-500.0,0.00014898,2]
[422945406,1779666639000,-500.0,0.00014898,2]
[422945383,1779666639000,-500.0,0.00014898,2]
[422945481,1779666639000,-500.0,0.00014898,2]
[422945427,1779666639000,-500.0,0.00014898,2]
[422945477,1779666639000,-500.0,0.00014898,2]
[422945523,1779666639000,-640.53,0.00014898,2]
[422945528,1779666639000,-640.53,0.00014898,2]
[422945530,1779666639000,-640.53,0.00014898,2]
[422945524,1779666639000,-640.53,0.00014898,2]
[422945520,1779666639000,-640.53,0.00014898,2]
[422945525,1779666639000,-640.53,0.00014898,2]
[422945533,1779666639000,-500.0,0.00014898,2]
[422945538,1779666639000,-2000.0,0.00014899,2]
[422945536,1779666639000,-1500000.0,0.00014899,2]
[422945537,1779666639000,-2500000.0,0.00014899,2]
[422945534,1779666639000,-500.0,0.00014898,2]
[422945535,1779666639000,-335.02794156,0.00014898,2]
[422945539,1779666639000,-3451.8552,0.00014899,2]
[422945540,1779666639000,-5992.9205,0.00014899,2]
[422945527,1779666639000,-640.53,0.00014898,2]
[422945541,1779666639000,-500.0,0.00014899,2]
[422945545,1779666639000,-846.81909,0.00014899,2]
[422945544,1779666639000,-500.0,0.00014899,2]
[422945546,1779666639000,-278.786554,0.00014899,2]
[422945542,1779666639000,-500.0,0.00014899,2]
[422945549,1779666639000,-846.81909,0.00014899,2]
[422945551,1779666639000,-846.81909,0.00014899,2]
[422945550,1779666639000,-278.786554,0.00014899,2]
[422945548,1779666639000,-278.786554,0.00014899,2]
[422945547,1779666639000,-846.81909,0.00014899,2]
[422945556,1779666639000,-422.702946,0.00014899,2]
[422945553,1779666639000,-151.0,0.00014899,2]
[422945555,1779666639000,-152.0,0.00014899,7]
[422945554,1779666639000,-152.0,0.00014899,7]
[422945487,1779666639000,-500.0,0.00014898,2]
[422945543,1779666639000,-500.0,0.00014899,2]
[422945522,1779666639000,-640.53,0.00014898,2]
[422945552,1779666639000,-278.786554,0.00014899,2]
[422945532,1779666639000,-640.53,0.00014898,2]
[422945526,1779666639000,-640.53,0.00014898,2]
[422945491,1779666639000,-421.78,0.00014898,2]
[422945493,1779666639000,-500.0,0.00014898,2]
[422945496,1779666639000,-500.0,0.00014898,2]
[422945495,1779666639000,-527.2240957,0.00014898,2]
[422945497,1779666639000,-500.0,0.00014898,3]
[422945501,1779666639000,-500.0,0.00014898,2]
[422945499,1779666639000,-500.0,0.00014898,2]
[422945504,1779666639000,-542.23499676,0.00014898,2]
[422945498,1779666639000,-500.0,0.00014898,4]